bitfinex-derivatives/quotes_ETHF0:USTF0_20240922
["timestamp","ask_amount","ask_price","bid_price","bid_amount"]
[1727039640447,0.38802,2577.0,2576.7,0.38806]
[1727039645145,0.38802,2577.0,2576.8,0.38805]
[1727039645532,0.38802,2577.0,2576.9,0.3998]
[1727039646147,4.95412,2577.1,2576.9,0.78784]
[1727039646343,4.95412,2577.1,2577.0,0.7561]
[1727039646843,2.53643651,2577.6,2577.0,0.7561]
[1727039646844,2.53643651,2577.6,2577.0,5.6169]
[1727039647050,3.6037,2577.7,2577.1,1.34251264]
[1727039647344,0.98,2577.8,2577.6,0.38793]
[1727039647551,0.98,2577.8,2577.7,0.7814]
[1727039648246,4.8592,2577.8,2577.7,0.7814]
[1727039651042,0.98,2577.8,2577.7,0.7814]
[1727039651239,4.8592,2577.8,2577.7,0.7814]
[1727039652345,4.8592,2577.8,2577.7,0.3816]
[1727039652643,4.8592,2577.8,2577.5,0.3943]
[1727039652846,0.98,2577.7,2577.2,1.17798]
[1727039653052,0.98,2577.5,2577.2,1.57228]
[1727039653938,0.98,2577.3,2577.2,1.1843]
[1727039654163,0.98,2577.3,2577.2,1.57229]
[1727039656746,0.98,2577.3,2577.2,1.1843]
[1727039659651,1.36798,2577.3,2577.1,3.2078]
[1727039659843,0.3843,2577.2,2577.1,3.2078]
[1727039664458,0.38801,2577.1,2576.8,1.55215]
[1727039664654,0.98,2576.9,2576.8,1.55215]
[1727039664853,0.39768738,2576.9,2576.8,2.89397315]
[1727039665462,0.39768738,2576.9,2576.8,2.50592315]
[1727039665854,0.39768738,2576.9,2576.8,2.89397315]
[1727039666155,0.39768738,2576.9,2576.8,2.50358085]
[1727039666750,0.39768738,2576.9,2576.8,2.89163085]
[1727039667149,0.39768738,2576.9,2576.8,2.10158085]
[1727039668760,0.39768738,2576.9,2576.8,0.7621]
[1727039672163,0.39768738,2576.9,2576.8,1.15015]
[1727039672763,2.16861,2577.1,2576.8,0.7621]
[1727039675265,2.16861,2577.1,2576.8,1.15015]
[1727039678672,0.3843,2577.2,2576.9,0.38803]
[1727039678673,3.5921,2577.2,2576.9,0.38803]
[1727039678969,0.98,2577.1,2576.9,0.78843]
[1727039685665,0.98,2577.1,2576.9,0.4004]
[1727039694583,4.1878,2577.1,2576.9,0.4004]
[1727039696384,4.1878,2577.1,2576.9,1.41648278]
[1727039697377,4.57582,2577.1,2576.9,1.41648278]
[1727039697587,1.75862,2577.1,2576.9,1.41648278]
[1727039698486,1.3706,2577.1,2576.9,1.80451278]
[1727039698796,1.3706,2577.1,2576.9,1.41648278]
[1727039700489,0.3843,2577.2,2577.1,0.38801]
[1727039700791,2.14796,2577.5,2577.2,0.38799]
[1727039700989,2.14796,2577.5,2577.2,1.15529]
[1727039700990,0.381,2577.4,2577.2,1.15529]
[1727039701187,2.53643651,2577.6,2577.2,2.17137278]
[1727039701188,0.38794,2577.6,2577.2,2.17137278]
[1727039701384,1.361,2577.6,2577.4,0.38795]
[1727039702482,1.361,2577.6,2577.3,1.38518278]
[1727039702483,0.381,2577.6,2577.3,1.77315278]
[1727039702684,1.361,2577.6,2577.4,0.38796]
[1727039702879,1.361,2577.6,2577.3,1.77315278]
[1727039703392,3.2078,2577.7,2577.5,0.38793]
[1727039703695,1.3772,2577.8,2577.6,0.3824]
[1727039703878,1.3772,2577.8,2577.6,1.77018278]
[1727039703879,0.98,2577.7,2577.6,1.77018278]
[1727039704079,0.98,2577.7,2577.6,2.15811278]
[1727039704281,0.98,2577.7,2577.6,0.7541]
[1727039704491,0.98,2577.7,2577.6,0.3717]
[1727039713097,1.36792,2577.7,2577.4,0.3824]
[1727039713292,0.98,2577.5,2577.4,0.3824]
[1727039713688,1.3549,2577.5,2577.4,0.3824]
[1727039714093,1.74285,2577.5,2577.4,0.3824]
[1727039714792,1.74285,2577.5,2577.3,1.76358278]
[1727039715703,1.74285,2577.5,2577.3,0.7475]
[1727039715891,0.38796,2577.4,2577.2,3.5813]
[1727039716088,0.98,2577.3,2577.2,3.96929]
[1727039716589,0.98,2577.3,2577.2,3.5813]
[1727039716898,0.76285,2577.5,2577.2,3.5813]
[1727039717194,0.98,2577.3,2577.2,0.3735]
[1727039721097,0.98,2577.3,2577.2,0.76149]
[1727039721496,0.98,2577.3,2577.2,1.77757278]
[1727039721713,0.405,2577.7,2577.2,1.38958278]
[1727039721889,0.3894,2577.7,2577.3,1.78738278]
[1727039722093,0.77732,2577.7,2577.4,0.38795]
[1727039722496,0.77732,2577.7,2577.5,0.3733]
[1727039726495,1.36793,2577.6,2577.5,0.3733]
[1727039729001,0.98,2577.6,2577.5,0.3733]
[1727039729897,1.36793,2577.6,2577.5,0.3733]
[1727039730503,0.98,2577.6,2577.5,0.3733]
[1727039731495,0.98,2577.6,2577.5,0.76125]
[1727039731692,0.98,2577.8,2577.6,0.38792]
[1727039731905,0.98,2577.9,2577.8,0.3879]
[1727039732102,6.23470325,2578.3,2577.8,3.2078]
[1727039732309,6.62970325,2578.3,2578.1,0.38785]
[1727039732496,6.62970325,2578.3,2578.2,0.3866]
[1727039732694,6.62970325,2578.3,2578.2,0.7662]
[1727039733001,7.01753325,2578.3,2578.2,0.7662]
[1727039733809,0.38785,2578.2,2577.9,0.78048]
[1727039734000,0.98,2578.1,2578.0,0.3714]
[1727039735003,0.98,2578.1,2578.0,0.75927]
[1727039735206,6.62970325,2578.3,2578.0,0.75927]
[1727039735411,7.01753325,2578.3,2578.0,0.75927]
[1727039736407,6.03753325,2578.3,2578.0,0.75927]
[1727039736711,0.98,2578.2,2578.0,0.75927]
[1727039739902,0.98,2578.2,2578.1,0.38786]
[1727039741610,0.395,2578.3,2578.1,0.38786]
[1727039743200,0.98,2578.4,2578.0,0.3714]
[1727039743422,0.98,2578.4,2578.2,0.38783]
[1727039743803,0.98,2578.4,2578.3,0.3954]
[1727039744005,0.98,2578.4,2578.3,0.7986]
[1727039744410,0.3725,2578.5,2578.4,0.38781]
[1727039744614,1.36775,2578.9,2578.4,3.6115]
[1727039744908,0.3725,2578.8,2578.6,0.38778]
[1727039745113,0.3725,2578.8,2578.7,0.4032]
[1727039745310,0.3725,2578.8,2578.7,0.7986]
[1727039745906,0.3725,2578.8,2578.7,1.18637]
[1727039746615,0.3725,2578.8,2578.7,0.7986]
[1727039747111,1.3525,2578.8,2578.7,0.7986]
[1727039748314,1.74025,2578.8,2578.7,0.7986]
[1727039748511,1.3525,2578.8,2578.7,0.7986]
[1727039750711,1.74025,2578.8,2578.7,0.7986]
[1727039751317,1.3525,2578.8,2578.7,0.7986]
[1727039752209,1.74025,2578.8,2578.7,0.7986]
[1727039755421,0.76025,2578.8,2578.7,0.7986]
[1727039755611,1.74025,2578.8,2578.7,0.7986]
[1727039756223,1.74025,2578.8,2578.4,3.6115]
[1727039756224,0.3878,2578.5,2578.4,3.6115]
[1727039756418,2.32191,2578.8,2578.4,3.6115]
[1727039756419,1.36779,2578.6,2578.4,3.6115]
[1727039756627,0.3878,2578.5,2578.4,3.6115]
[1727039756927,0.38779,2578.6,2578.4,0.4037]
[1727039757117,0.38779,2578.6,2578.5,0.4077]
[1727039757319,0.75617,2578.7,2578.5,0.4077]
[1727039757820,0.75617,2578.7,2578.6,0.376]
[1727039758618,0.75617,2578.7,2578.5,0.4077]
[1727039758619,0.38778,2578.6,2578.5,0.4077]
[1727039760928,1.36778,2578.6,2578.5,0.4077]
[1727039761128,0.3878,2578.5,2578.4,0.7816]
[1727039763434,1.75069,2578.6,2578.4,0.7816]
[1727039763622,0.3878,2578.5,2578.4,0.7816]
[1727039763928,1.3629,2578.6,2578.4,0.7816]
[1727039764633,0.3878,2578.5,2578.4,0.7816]
[1727039767128,0.3684,2578.7,2578.4,0.7816]
[1727039767333,0.75617,2578.7,2578.5,0.38779]
[1727039767521,0.38776,2578.8,2578.6,0.38778]
[1727039767719,0.38776,2578.8,2578.7,0.3796]
[1727039770627,1.36776,2578.8,2578.7,0.3796]
[1727039770828,0.38778,2578.6,2578.5,0.397]
[1727039772727,1.36778,2578.6,2578.5,0.397]
[1727039773529,0.3878,2578.5,2578.4,0.4037]
[1727039773723,0.98,2578.6,2578.4,0.4037]
[1727039773935,0.3878,2578.5,2578.4,0.4037]
[1727039777630,1.35114,2578.7,2578.4,0.4037]
[1727039777835,0.3878,2578.5,2578.4,0.4037]
[1727039778930,0.3878,2578.5,2578.3,0.3743]
[1727039778931,0.38781,2578.4,2578.3,0.3743]
[1727039779131,0.79141,2578.4,2578.3,0.3743]
[1727039779433,0.79141,2578.4,2578.2,3.5931]
[1727039779434,0.38783,2578.3,2578.2,3.5931]
[1727039780030,0.38783,2578.3,2578.2,0.3853]
[1727039780633,0.4036,2578.4,2578.2,0.3853]
[1727039780951,0.79142,2578.4,2578.2,1.40138278]
[1727039781437,0.38783,2578.3,2578.2,1.40138278]
[1727039781635,0.38783,2578.3,2578.2,1.72559787]
[1727039781837,0.38783,2578.3,2578.2,2.74175279]
[1727039782035,0.38783,2578.3,2578.2,1.72559787]
[1727039782429,0.38783,2578.3,2578.2,3.24964979]
[1727039782631,0.38783,2578.3,2578.2,1.72559787]
[1727039783043,0.38783,2578.3,2578.2,1.72578148]
[1727039783334,0.38783,2578.3,2578.2,3.2498334]
[1727039783735,0.38783,2578.3,2578.2,2.74225079]
[1727039783936,0.38783,2578.3,2578.2,0.3853]
[1727039784142,0.79142,2578.4,2578.2,1.40176931]
[1727039784439,0.79142,2578.4,2578.2,1.78960931]
[1727039784832,0.4036,2578.4,2578.2,1.78960931]
[1727039785043,0.79141,2578.4,2578.2,1.78960931]
[1727039785343,0.79141,2578.4,2578.3,1.01646931]
[1727039785834,0.79141,2578.4,2578.2,1.40176931]
[1727039786238,0.79141,2578.4,2578.3,1.01646931]
[1727039786438,0.79141,2578.4,2578.2,1.40176931]
[1727039787239,0.4036,2578.4,2578.3,1.01646931]
[1727039787436,3.458,2578.6,2578.3,1.01646931]
[1727039787640,0.3878,2578.5,2578.3,1.40429931]
[1727039787835,0.3878,2578.5,2578.4,0.3741]
[1727039788433,0.3878,2578.5,2578.4,1.39056931]
[1727039788640,0.3878,2578.5,2578.4,0.3741]
[1727039788935,0.3878,2578.5,2578.4,1.39056931]
[1727039791134,0.3878,2578.5,2578.4,0.3741]
[1727039791338,0.3878,2578.5,2578.4,1.39056931]
[1727039791736,0.3878,2578.5,2578.4,0.3741]
[1727039797938,2.92423651,2578.5,2578.4,0.3741]
[1727039798343,0.96952,2578.5,2578.2,3.5931]
[1727039798546,0.38783,2578.3,2578.2,3.5931]
[1727039799239,0.76503,2578.3,2578.2,3.5931]
[1727039800044,0.76503,2578.3,2578.2,3.2078]
[1727039801341,0.38784,2578.2,2578.1,0.7775]
[1727039803847,0.38784,2578.2,2578.1,3.64290499]
[1727039807150,0.38784,2578.2,2578.1,3.64285526]
[1727039814846,0.38784,2578.2,2578.1,2.11880334]
[1727039815047,0.38784,2578.2,2578.1,3.13579895]
[1727039815552,0.38784,2578.2,2578.1,2.11880334]
[1727039816151,1.35746,2578.2,2578.1,2.11880334]
[1727039816453,2.32716,2578.1,2578.0,1.01706381]
[1727039816657,0.38789,2577.9,2577.8,1.01706381]
[1727039816858,1.35767,2577.8,2577.7,1.01706381]
[1727039817052,1.35772,2577.7,2577.6,1.38566381]
[1727039817253,2.71192,2577.7,2577.6,1.38566381]
[1727039818047,0.96984,2577.6,2577.3,1.01706381]
[1727039818253,0.38798,2577.3,2577.2,1.76336381]
[1727039818454,0.38798,2577.3,2577.2,0.7463]
[1727039827061,0.77198,2577.3,2577.2,0.7463]
[1727039827858,0.38801,2577.1,2577.0,0.3883]
[1727039828060,1.36801,2577.1,2577.0,0.3883]
[1727039829264,0.98,2577.2,2577.0,0.3883]
[1727039829467,0.38801,2577.1,2577.0,0.3883]
[1727039829871,0.98,2577.2,2577.0,0.3883]
[1727039830257,0.38801,2577.1,2577.0,0.3883]
[1727039833161,0.38799,2577.3,2577.0,0.77632]
[1727039833371,0.38799,2577.2,2577.0,3.5961]
[1727039833567,0.38799,2577.2,2577.1,0.4032]
[1727039833773,0.38799,2577.3,2577.1,0.4032]
[1727039833974,5.1841,2577.5,2577.2,0.3694]
[1727039834267,0.38798,2577.3,2577.2,0.3694]
[1727039834671,1.36798,2577.3,2577.2,0.3694]
[1727039834975,1.36798,2577.3,2577.1,0.4032]
[1727039834976,0.38799,2577.2,2577.1,0.4032]
[1727039835168,0.78859,2577.2,2577.1,0.4032]
[1727039835876,1.76859,2577.2,2577.1,0.4032]
[1727039838580,6.0728,2577.5,2577.1,0.4032]
[1727039838581,1.36799,2577.3,2577.1,0.4032]
[1727039839983,2.476,2577.5,2577.2,0.38798]
[1727039839984,0.38795,2577.5,2577.2,0.38798]
[1727039840281,0.38795,2577.5,2577.3,0.3995]
[1727039840578,0.38795,2577.5,2577.4,0.3972]
[1727039840880,1.36795,2577.5,2577.4,0.3972]
[1727039841495,0.38796,2577.4,2577.3,0.3995]
[1727039851290,0.38796,2577.4,2577.0,3.2078]
[1727039851291,0.38801,2577.1,2577.0,3.2078]
[1727039852785,1.368,2577.2,2577.0,3.2078]
[1727039860406,1.368,2577.2,2577.0,4.22486381]
[1727039861504,1.368,2577.2,2577.1,1.01706381]
[1727039864107,1.368,2577.2,2577.0,4.73185192]
[1727039864308,1.368,2577.2,2577.0,0.41117082]
[1727039865105,1.368,2577.2,2577.1,1.33342777]
[1727039865501,1.368,2577.2,2576.9,1.90277798]
[1727039865706,1.368,2577.2,2576.9,0.98227332]
[1727039866207,1.368,2577.2,2576.9,1.37030332]
[1727039866510,1.368,2577.2,2576.9,0.38803]
[1727039867010,0.38801,2577.1,2576.8,1.14445]
[1727039867401,0.4063,2577.0,2576.8,1.14445]
[1727039868607,0.4063,2577.0,2576.9,0.3893]
[1727039869010,1.77432,2577.0,2576.9,0.3893]
[1727039869414,1.3863,2577.0,2576.9,0.3893]
[1727039871610,1.3863,2577.0,2576.9,0.77734]
[1727039871808,1.3863,2577.0,2576.9,0.3893]
[1727039874805,1.3863,2577.0,2576.8,0.7564]
[1727039875006,0.38807,2576.8,2576.6,3.2078]
[1727039875209,0.98,2576.7,2576.6,3.2078]
[1727039875411,1.3554,2576.7,2576.6,3.2078]
[1727039876012,0.3754,2576.7,2576.6,5.8329572]
[1727039877513,0.3754,2576.7,2576.6,2.6251572]
[1727039878210,3.2078,2577.0,2576.8,0.38804]
[1727039878407,0.98,2577.1,2576.9,1.16663]
[1727039878609,0.98,2577.1,2577.0,0.4025]
[1727039880115,1.36801,2577.1,2577.0,0.4025]
[1727039880616,1.36799,2577.3,2577.0,0.4025]
[1727039880815,1.36799,2577.3,2577.1,0.388]
[1727039880816,1.36798,2577.3,2577.1,0.388]
[1727039881019,6.54639463,2577.4,2577.3,0.38798]
[1727039881315,6.54639463,2577.4,2577.2,0.38799]
[1727039881316,4.90157,2577.4,2577.2,0.38799]
[1727039881521,4.90157,2577.4,2577.3,0.7694]
[1727039881714,4.90157,2577.4,2577.3,1.1774]
[1727039882118,3.93875677,2577.4,2577.3,1.1774]
[1727039883311,3.55078677,2577.4,2577.3,1.1774]
[1727039883509,0.3866,2577.4,2577.3,1.1774]
[1727039884721,4.57576,2577.5,2577.3,1.1774]
[1727039885619,1.36796,2577.5,2577.3,1.1774]
[1727039888711,0.4021,2577.4,2577.3,1.1774]
[1727039888909,0.4021,2577.4,2577.3,2.48942117]
[1727039889618,0.4021,2577.4,2577.3,1.1774]
[1727039890721,0.4021,2577.4,2577.3,2.4893896]
[1727039890921,0.4021,2577.4,2577.3,1.1774]
[1727039891221,0.4021,2577.4,2577.3,2.48938967]
[1727039891414,0.4021,2577.4,2577.3,1.1774]
[1727039894619,0.4021,2577.4,2577.3,2.48935122]
[1727039894817,0.4021,2577.4,2577.3,1.1774]
[1727039895315,0.4021,2577.4,2577.3,2.48933275]
[1727039895517,2.03279463,2577.7,2577.3,6.36932492]
[1727039895727,0.4062,2577.7,2577.4,1.69985469]
[1727039896029,0.4062,2577.7,2577.4,0.38796]
[1727039896214,0.79412,2577.7,2577.4,0.38796]
[1727039896619,0.4062,2577.7,2577.5,0.38794]
[1727039897020,0.4062,2577.7,2577.6,0.395]
[1727039898927,6.60850463,2577.8,2577.7,0.38792]
[1727039898928,5.24059463,2577.8,2577.7,0.38792]
[1727039899129,3.2078,2578.1,2577.7,9.93601178]
[1727039899325,3.2078,2578.1,2578.0,0.38787]
[1727039899626,1.7384,2578.5,2578.2,0.38784]
[1727039899627,1.3774,2578.5,2578.2,0.38784]
[1727039899833,1.3774,2578.5,2578.3,0.3845]
[1727039900331,1.7652,2578.5,2578.3,0.3845]
[1727039900720,1.3774,2578.5,2578.3,0.3845]
[1727039901431,3.01279463,2578.4,2578.0,0.4024]
[1727039901625,0.98,2578.1,2578.0,0.804]
[1727039904330,1.36783,2578.3,2578.0,0.804]
[1727039904628,0.98,2578.3,2578.0,1.19187]
[1727039904829,0.3974,2578.5,2578.1,0.38785]
[1727039905032,0.78521,2578.5,2578.1,0.77065]
[1727039906934,0.38786,2578.1,2578.0,0.804]
[1727039907134,1.36786,2578.1,2578.0,0.4016]
[1727039907431,0.98,2578.1,2578.0,0.4016]
[1727039907825,1.3497,2578.1,2578.0,0.4016]
[1727039908026,0.3697,2578.1,2578.0,0.4016]
[1727039908230,0.3697,2578.1,2578.0,0.7946]
[1727039911636,0.3697,2578.1,2578.0,0.4016]
[1727039911637,1.73756,2578.1,2578.0,0.4016]
[1727039913451,1.3497,2578.1,2578.0,0.4016]
[1727039913646,0.3697,2578.1,2578.0,0.4016]
[1727039917650,1.3497,2578.1,2578.0,0.4016]
[1727039920850,3.2078,2578.3,2578.0,4.66867]
[1727039921152,3.2078,2578.3,2578.1,0.391]
[1727039921349,3.2078,2578.3,2578.1,0.7962]
[1727039921748,0.38783,2578.3,2578.1,0.7962]
[1727039922349,0.75772,2578.4,2578.1,0.7962]
[1727039922551,0.3699,2578.4,2578.1,0.7962]
[1727039922848,0.38783,2578.3,2578.1,0.7962]
[1727039923746,1.36783,2578.3,2578.1,0.7962]
[1727039925254,4.57563,2578.3,2578.1,0.7962]
[1727039925753,1.36783,2578.3,2578.1,0.7962]
[1727039926255,0.38783,2578.3,2578.1,0.7962]
[1727039926559,1.36783,2578.3,2578.1,0.7962]
[1727039930859,1.36783,2578.3,2578.1,0.4052]
[1727039932753,0.38784,2578.2,2578.1,0.4052]
[1727039932954,1.36784,2578.3,2578.1,0.4052]
[1727039933960,4.57564,2578.3,2578.1,0.4052]
[1727039934158,1.36784,2578.3,2578.1,0.4052]
[1727039934562,0.38784,2578.2,2578.1,0.4052]
[1727039934761,0.38784,2578.2,2578.0,0.4016]
[1727039934962,0.7787,2578.1,2578.0,0.4016]
[1727039935359,0.7787,2578.1,2578.0,4.2808]
[1727039935867,0.7787,2578.1,2578.0,0.4016]
[1727039936059,0.7787,2578.1,2578.0,4.2808]
[1727039939465,1.16656,2578.1,2578.0,4.2808]
[1727039939769,0.7787,2578.1,2578.0,4.2808]
[1727039939974,0.7787,2578.1,2578.0,0.4016]
[1727039943466,3.19935463,2578.1,2577.8,2.2776255]
[1727039943673,3.19935463,2578.1,2577.8,2.6856255]
[1727039943864,2.81149463,2578.1,2577.9,1.31249865]
[1727039944172,2.81149463,2578.1,2577.8,2.6856255]
[1727039944367,2.81149463,2578.1,2577.9,1.31249795]
[1727039944664,2.03279463,2578.0,2577.9,1.5210255]
[1727039944870,2.03279463,2578.0,2577.9,2.83421405]
[1727039945269,3.01279463,2578.0,2577.9,2.83421405]
[1727039945459,0.3879,2577.8,2577.7,1.5210255]
[1727039945659,3.40283089,2577.8,2577.6,1.5210255]
[1727039945858,2.83033089,2577.7,2577.5,1.5210255]
[1727039946062,2.83033089,2577.7,2577.6,1.3131756]
[1727039946457,2.83033089,2577.7,2577.5,1.5210255]
[1727039946856,0.7954,2577.7,2577.6,2.83386149]
[1727039947463,2.03493089,2577.9,2577.6,6.7130702]
[1727039947768,2.03493089,2577.9,2577.7,1.3128447]
[1727039947769,2.43613089,2577.9,2577.7,1.3128447]
[1727039947973,2.82403089,2577.9,2577.7,1.9181255]
[1727039948173,2.82403089,2577.9,2577.7,0.3971]
[1727039949566,0.7891,2577.9,2577.7,0.3971]
[1727039950081,0.4012,2577.9,2577.7,0.3971]
[1727039950374,0.4012,2577.9,2577.8,0.4008]
[1727039950865,0.78909,2577.9,2577.8,0.4008]
[1727039953367,0.78909,2577.9,2577.6,1.5210255]
[1727039953368,0.38791,2577.8,2577.6,1.5210255]
[1727039953672,1.36791,2577.8,2577.5,1.9030255]
[1727039953975,0.38792,2577.7,2577.6,1.31208859]
[1727039954278,0.38792,2577.7,2577.5,1.9030255]
[1727039954468,0.7594,2577.6,2577.5,1.9030255]
[1727039954670,0.7594,2577.6,2577.5,3.2149733]
[1727039955473,0.7594,2577.6,2577.5,1.3119478]
[1727039955679,1.14734,2577.6,2577.4,1.9282255]
[1727039955979,0.3745,2577.6,2577.4,2.3161855]
[1727039956177,2.79733089,2577.9,2577.5,3.21485719]
[1727039956368,2.79733089,2577.9,2577.6,0.3737]
[1727039956963,0.3879,2577.8,2577.6,0.3737]
[1727039958681,2.79732089,2577.9,2577.6,0.3737]
[1727039958872,0.76239,2577.9,2577.6,0.3737]
[1727039959072,2.79732089,2577.9,2577.6,0.3737]
[1727039959476,0.76239,2577.9,2577.6,0.3737]
[1727039960072,2.79732089,2577.9,2577.6,0.3737]
[1727039960267,0.76239,2577.9,2577.6,0.3737]
[1727039962680,0.3879,2577.8,2577.6,0.3737]
[1727039965780,0.76239,2577.9,2577.6,0.3737]
[1727039966874,0.3879,2577.8,2577.6,0.3737]
[1727039967982,0.3745,2577.9,2577.6,1.8947255]
[1727039968182,0.3745,2577.9,2577.7,0.38792]
[1727039968390,0.3745,2577.9,2577.8,0.3696]
[1727039970289,2.41983089,2578.1,2577.8,5.2288]
[1727039970488,0.404,2578.2,2577.9,0.38788]
[1727039970790,0.404,2578.2,2578.0,0.4015]
[1727039974493,0.404,2578.2,2578.0,1.9225255]
[1727039974688,0.404,2578.2,2578.0,0.4015]
[1727039975292,0.404,2578.2,2578.0,1.9225255]
[1727039975685,0.404,2578.2,2578.0,0.4015]
[1727039976593,0.3784,2578.4,2578.1,0.38786]
[1727039976784,0.7525,2578.4,2578.2,0.767]
[1727039977793,1.14031,2578.4,2578.2,0.767]
[1727039979887,0.7525,2578.4,2578.2,0.767]
[1727039981194,0.38784,2578.3,2577.9,1.5210255]
[1727039981399,0.38784,2578.3,2578.0,1.31021836]
[1727039981597,0.38784,2578.3,2577.9,2.3030255]
[1727039981798,0.38784,2578.3,2578.0,1.31014329]
[1727039981994,0.38784,2578.3,2577.9,2.3030255]
[1727039982201,0.38784,2578.3,2578.0,1.31013834]
[1727039982400,0.38784,2578.3,2577.9,2.3030255]
[1727039982600,0.38784,2578.3,2578.0,1.31008118]
[1727039982796,0.38784,2578.3,2577.9,2.3030255]
[1727039982993,0.38784,2578.3,2578.0,1.31008604]
[1727039983197,0.38784,2578.3,2577.9,2.6909155]
[1727039983398,0.38784,2578.3,2578.0,1.31009058]
[1727039983598,0.38784,2578.3,2577.9,2.6909155]
[1727039983801,0.38784,2578.3,2578.0,1.31002142]
[1727039984098,0.38784,2578.3,2577.9,2.6909155]
[1727039984298,0.38784,2578.3,2578.0,2.32560468]
[1727039984502,0.38784,2578.3,2578.0,1.01557417]
[1727039987792,2.12033,2578.4,2578.0,1.40344417]
[1727039988007,2.12032,2578.4,2578.1,1.01557417]
[1727039988202,0.38783,2578.3,2578.0,1.01557417]
[1727039991904,0.38783,2578.3,2577.9,2.18545417]
[1727039994110,0.38783,2578.3,2578.0,3.2078]
[1727039994298,0.38783,2578.3,2578.0,4.22337417]
[1727039994504,0.38783,2578.3,2578.0,3.2078]
[1727039994700,1.7325,2578.4,2578.0,4.1878]
[1727039994701,1.14031,2578.4,2578.0,4.1878]
[1727039994906,0.7525,2578.4,2578.1,0.3753]
[1727039995112,3.40270089,2578.7,2578.4,0.38781]
[1727039995311,1.74097,2578.7,2578.3,0.38781]
[1727039995511,0.3795,2578.6,2578.4,0.4008]
[1727039996409,0.3795,2578.6,2578.4,0.78861]
[1727039999107,0.3795,2578.6,2578.4,0.4008]
[1727039999307,0.3795,2578.6,2578.5,0.7812]
[1727040000119,0.3795,2578.6,2578.5,0.3934]
[1727040010712,0.3795,2578.6,2578.4,0.4008]
[1727040012419,0.3795,2578.6,2578.4,0.7886]
[1727040014220,0.3795,2578.6,2578.5,0.3834]
[1727040014418,0.3795,2578.6,2578.5,0.7712]
[1727040014816,0.3795,2578.6,2578.5,0.3834]
[1727040015122,0.3732,2578.7,2578.5,3.09790095]
[1727040015319,1.14127,2578.7,2578.5,1.39897417]
[1727040015519,1.14127,2578.7,2578.6,1.40717417]
[1727040016725,0.7535,2578.7,2578.6,1.40717417]
[1727040016914,1.14127,2578.7,2578.6,1.40717417]
[1727040017818,0.7535,2578.7,2578.6,1.40717417]
[1727040018317,3.2078,2578.9,2578.7,0.38776]
[1727040018520,3.2078,2578.9,2578.8,0.3884]
[1727040019220,2.81033089,2579.1,2578.8,1.40397417]
[1727040019425,0.7754,2579.1,2578.9,1.78200417]
[1727040019630,0.7754,2579.1,2578.9,2.15260417]
[1727040019825,0.7754,2579.1,2579.0,0.38772]
[1727040020134,0.7754,2579.1,2578.9,2.15260417]
[1727040020814,2.03493089,2579.3,2579.1,0.38769]
[1727040021017,3.97516,2579.4,2579.2,0.7728]
[1727040021220,3.5875,2579.4,2579.2,1.16049]
[1727040021423,3.5875,2579.4,2579.2,0.7728]
[1727040022028,3.97516,2579.4,2579.2,0.7728]
[1727040027129,3.5875,2579.4,2579.2,1.16049]
[1727040027328,3.5875,2579.4,2579.3,0.38768]
[1727040027536,3.2078,2579.4,2579.3,0.78528]
[1727040027830,0.3717,2579.6,2579.3,5.2544]
[1727040028032,0.7459,2579.6,2579.3,1.3776]
[1727040028230,0.7459,2579.6,2579.5,0.38765]
[1727040029127,0.7459,2579.6,2579.4,0.38765]
[1727040029518,0.7459,2579.6,2579.5,0.4081]
[1727040030334,1.13353,2579.6,2579.5,0.4081]
[1727040031023,1.7259,2579.6,2579.2,0.3935]
[1727040031328,0.38767,2579.4,2579.2,0.3935]
[1727040031522,0.38768,2579.3,2579.2,0.3935]
[1727040031726,0.78998,2579.3,2579.2,0.3935]
[1727040032123,0.4023,2579.3,2579.2,0.3935]
[1727040032320,0.78998,2579.3,2579.2,0.3935]
[1727040033028,0.4023,2579.3,2579.2,0.3935]
[1727040034028,0.78998,2579.3,2579.2,0.3935]
[1727040035024,0.4023,2579.3,2579.2,0.3935]
[1727040037331,0.78998,2579.3,2579.2,0.3935]
[1727040037727,0.4023,2579.3,2579.2,0.3935]
[1727040038128,0.78998,2579.3,2579.2,0.3935]
[1727040039230,0.4023,2579.3,2579.2,0.3935]
[1727040039732,0.38765,2579.5,2579.2,0.7789]
[1727040039923,0.78065,2579.5,2579.2,0.7789]
[1727040040128,0.78066,2579.5,2579.2,0.7789]
[1727040041427,0.38766,2579.4,2579.2,0.7789]
[1727040042334,0.393,2579.5,2579.2,0.7789]
[1727040042335,0.78066,2579.5,2579.2,0.7789]
[1727040042734,0.38766,2579.4,2579.2,0.7789]
[1727040045136,0.38766,2579.4,2579.2,1.16659]
[1727040046040,0.38766,2579.4,2579.2,0.7789]
[1727040046227,0.38766,2579.4,2579.2,1.16659]
[1727040060350,2.42793089,2579.5,2579.3,0.38768]
[1727040060558,0.78065,2579.5,2579.2,1.16658]
[1727040060732,2.81558089,2579.5,2579.2,1.16658]
[1727040063041,2.81558089,2579.5,2579.2,2.18215417]
[1727040063346,2.03493089,2579.4,2579.2,1.16658]
[1727040063946,2.03493089,2579.4,2579.3,0.38768]
[1727040064244,2.03493089,2579.4,2579.2,2.18215417]
[1727040064638,2.03493089,2579.4,2579.3,0.38768]
[1727040065039,2.03493089,2579.4,2579.3,1.40325417]
[1727040065245,3.32164329,2579.5,2579.3,1.40325417]
[1727040065446,2.03467479,2579.4,2579.3,2.38325417]
[1727040065641,2.03467479,2579.4,2579.3,3.69524066]